bitfinex-derivatives/quotes_SOLF0:USTF0_20220101
["timestamp","ask_amount","ask_price","bid_price","bid_amount"]
[1641040250992,12.1795052,172.14,172.08,4.12799172]
[1641040252293,9.1795052,172.14,172.09,4.12799172]
[1641040255098,12.1795052,172.14,172.09,4.12799172]
[1641040255598,3.0,172.12,172.09,4.12799172]
[1641040255799,3.0,172.13,172.09,4.12799172]
[1641040255999,3.0,172.12,172.09,4.12799172]
[1641040256199,3.0,172.13,172.09,4.12799172]
[1641040256600,9.1795052,172.14,172.09,4.12799172]
[1641040256800,5.80905632,172.12,172.09,4.12799172]
[1641040257001,8.80905632,172.12,172.09,4.12799172]
[1641040257200,33.47384632,172.12,172.09,4.12799172]
[1641040257404,36.47384632,172.12,172.09,4.12799172]
[1641040257802,36.47384632,172.12,172.07,4.12799172]
[1641040259504,36.47384632,172.12,172.06,4.12799172]
[1641040259704,11.46365223,172.11,172.06,4.12799172]
[1641040260103,8.16107388,172.11,172.06,4.12799172]
[1641040260303,8.16107388,172.11,172.05,4.12799172]
[1641040261304,8.16107388,172.11,172.06,27.66479]
[1641040261508,3.0,172.16,172.08,4.12799172]
[1641040262306,3.0,172.16,172.12,4.12799172]
[1641040263309,3.0,172.16,172.1,31.79278172]
[1641040263811,3.0,172.16,172.13,4.12799172]
[1641040266014,27.66479,172.18,172.13,4.12799172]
[1641040266215,27.66479,172.18,172.1,27.66479]
[1641040267214,21.06294323,172.18,172.1,30.66479]
[1641040267415,21.06294323,172.18,172.12,3.0]
[1641040267816,21.06294323,172.18,172.1,30.66479]
[1641040268215,21.06294323,172.18,172.11,3.0]
[1641040268819,21.06294323,172.18,172.11,7.455]
[1641040269018,21.06294323,172.18,172.11,4.455]
[1641040270119,21.06294323,172.18,172.12,3.0]
[1641040270320,21.06294323,172.18,172.13,3.0]
[1641040270520,21.06294323,172.18,172.14,32.25070325]
[1641040271920,21.06294323,172.18,172.16,32.25070325]
[1641040272821,35.79815247,172.25,172.17,32.25070325]
[1641040273023,4.03155247,172.25,172.17,32.25070325]
[1641040273422,31.69634247,172.25,172.17,32.25070325]
[1641040273623,3.29992393,172.24,172.19,32.25070325]
[1641040274326,3.29992393,172.24,172.2,32.25070325]
[1641040275126,3.29992393,172.24,172.23,12.37457739]
[1641040275327,6.29992393,172.24,172.19,32.25070325]
[1641040275527,3.29992393,172.24,172.19,32.25070325]
[1641040275727,3.0,172.22,172.15,52.75288276]
[1641040275926,3.29992393,172.24,172.15,52.75288276]
[1641040276128,3.29992393,172.21,172.15,52.75288276]
[1641040276629,34.91032393,172.24,172.15,52.75288276]
[1641040276928,4.12539527,172.23,172.15,32.25070325]
[1641040277129,3.0,172.22,172.15,32.25070325]
[1641040277332,30.66479,172.21,172.15,32.25070325]
[1641040277830,27.66479,172.21,172.15,32.25070325]
[1641040278029,4.12539527,172.18,172.12,12.31021933]
[1641040278229,4.12539527,172.18,172.11,40.44266343]
[1641040279032,31.79018527,172.21,172.13,32.25070325]
[1641040279532,3.30073067,172.2,172.13,32.25070325]
[1641040279835,7.42612594,172.2,172.12,32.25070325]
[1641040280232,7.42612594,172.2,172.13,32.25070325]
[1641040280635,3.30073067,172.19,172.13,32.25070325]
[1641040281033,3.30073067,172.19,172.12,32.25070325]
[1641040281432,27.66479,172.18,172.12,32.25070325]
[1641040281632,27.66479,172.18,172.11,8.19196018]
[1641040282440,27.66479,172.18,172.09,8.19196018]
[1641040282937,3.30113911,172.17,172.09,8.19196018]
[1641040283739,3.30113911,172.17,172.09,11.19196018]
[1641040283940,27.66479,172.18,172.1,1.91697306]
[1641040283941,31.79018527,172.18,172.1,1.91697306]
[1641040284742,27.66479,172.18,172.1,1.91697306]
[1641040284944,3.30103104,172.17,172.1,1.91697306]
[1641040285442,27.66479,172.18,172.11,27.66479]
[1641040286242,27.66479,172.18,172.12,10.10893324]
[1641040286945,27.66479,172.18,172.13,1.91697306]
[1641040288046,27.66479,172.18,172.13,4.91697306]
[1641040288246,27.66479,172.18,172.13,1.91697306]
[1641040288646,27.66479,172.18,172.13,4.91697306]
[1641040289146,27.66479,172.18,172.14,1.91697306]
[1641040291854,27.66479,172.18,172.14,9.15697306]
[1641040292053,4.12539527,172.23,172.14,9.15697306]
[1641040292251,4.12539527,172.23,172.14,6.15697306]
[1641040292552,4.12539527,172.24,172.14,6.15697306]
[1641040292851,4.12539527,172.24,172.18,3.0]
[1641040293256,4.12539527,172.26,172.23,4.11452933]
[1641040295555,34.07029527,172.3,172.22,10.10893324]
[1641040295756,4.12539527,172.3,172.22,10.10893324]
[1641040296556,5.2018222,172.3,172.28,4.12381508]
[1641040296757,3.2992672,172.29,172.28,4.12381508]
[1641040297155,2.2018222,172.3,172.28,4.12381508]
[1641040297355,33.46761017,172.31,172.26,4.12381508]
[1641040297356,2.2018222,172.29,172.26,4.12381508]
[1641040298156,2.2018222,172.29,172.23,1.91697306]
[1641040298357,2.2018222,172.3,172.23,1.91697306]
[1641040298759,2.2018222,172.3,172.28,4.12369704]
[1641040300163,10.79713565,172.3,172.24,4.12369704]
[1641040302364,10.79713565,172.3,172.25,4.12369704]
[1641040303166,10.79713565,172.3,172.25,7.12369704]
[1641040303364,10.79713565,172.3,172.25,4.12369704]
[1641040304066,2.2018222,172.3,172.27,4.12369704]
[1641040304969,27.66479,172.31,172.24,30.66479]
[1641040305167,27.66479,172.31,172.24,27.66479]
[1641040307770,27.66479,172.31,172.21,27.66479]
[1641040309772,27.66479,172.31,172.24,27.66479]
[1641040311773,14.38682719,172.3,172.26,4.12369704]
[1641040313075,2.19197965,172.3,172.27,4.12369704]
[1641040314775,2.19197965,172.3,172.25,1.93124804]
[1641040314776,2.19197965,172.3,172.28,4.12369704]
[1641040315376,2.19197965,172.3,172.29,4.12369704]
[1641040316177,27.66479,172.31,172.28,12.19484754]
[1641040319182,27.66479,172.31,172.27,12.19484754]
[1641040321082,27.66479,172.31,172.26,9.82986581]
[1641040321083,27.66479,172.31,172.28,12.19484754]
[1641040321284,12.19484754,172.35,172.28,12.19484754]
[1641040321984,12.19484754,172.35,172.27,12.19484754]
[1641040322287,12.19484754,172.35,172.28,27.66479]
[1641040322684,12.19484754,172.35,172.31,4.12208932]
[1641040323485,14.38557498,172.36,172.32,4.12208932]
[1641040323687,14.38557498,172.36,172.32,9.69008932]
[1641040324086,14.38557498,172.36,172.32,37.35487932]
[1641040324686,14.38557498,172.37,172.33,6.05333736]
[1641040325486,13.95967498,172.37,172.33,6.05333736]
[1641040325686,13.95967498,172.37,172.33,9.05333736]
[1641040325687,12.19484754,172.37,172.33,9.05333736]
[1641040325886,12.19484754,172.37,172.33,6.05333736]
[1641040326185,12.19484754,172.37,172.36,27.66479]
[1641040326589,4.754e-05,172.37,172.36,30.66479]
[1641040326787,32.25070325,172.41,172.36,30.66479]
[1641040327087,12.36117858,172.44,172.36,39.85963754]
[1641040327988,12.36117858,172.44,172.36,46.23263754]
[1641040328188,27.66479,172.46,172.36,34.03779]
[1641040328592,4.11959855,172.44,172.37,7.89767931]
[1641040329392,7.11952433,172.45,172.37,52.45154749]
[1641040329892,4.11952433,172.45,172.37,52.45154749]
[1641040330293,27.66479,172.46,172.42,4.12010611]
[1641040331495,30.66479,172.46,172.43,4.12010611]
[1641040331698,3.0,172.44,172.43,4.12010611]
[1641040331897,3.0,172.45,172.43,4.12010611]
[1641040332096,3.0,172.45,172.43,6.11e-06]
[1641040332296,3.0,172.45,172.37,7.89767931]
[1641040332598,30.66479,172.46,172.37,7.89767931]
[1641040333198,3.0,172.45,172.33,32.0295]
[1641040333396,37.43541119,172.45,172.33,32.0295]
[1641040333798,34.1392,172.45,172.33,32.0295]
[1641040334396,3.0,172.42,172.33,32.0295]
[1641040334598,3.0,172.42,172.32,27.66479]
[1641040335099,3.0,172.41,172.32,27.66479]
[1641040335302,6.29683032,172.41,172.32,27.66479]
[1641040335500,3.29683032,172.41,172.33,8.10171928]
[1641040335699,3.0,172.41,172.33,8.10171928]
[1641040336199,27.66479,172.41,172.33,8.10171928]
[1641040337402,27.66479,172.41,172.33,40.35242253]
[1641040338104,27.66479,172.41,172.34,32.25070325]
[1641040338302,30.66479,172.41,172.34,32.25070325]
[1641040338601,27.66479,172.41,172.34,32.25070325]
[1641040339604,3.0,172.43,172.34,32.25070325]
[1641040339807,3.0,172.44,172.34,32.25070325]
[1641040340006,3.0,172.43,172.34,32.25070325]
[1641040340207,27.66479,172.41,172.35,32.25070325]
[1641040340907,27.66479,172.41,172.34,40.35242253]
[1641040341508,27.66479,172.41,172.34,8.10171928]
[1641040342909,34.1392,172.45,172.34,8.10171928]
[1641040343109,30.66479,172.46,172.34,8.10171928]
[1641040344012,30.66479,172.46,172.35,32.25070325]
[1641040344211,30.66479,172.46,172.35,59.91549325]
[1641040344912,30.66479,172.46,172.36,8.10171928]
[1641040345612,3.0,172.45,172.36,8.10171928]
[1641040346012,30.66479,172.46,172.36,8.10171928]
[1641040346213,3.0,172.45,172.36,8.10171928]
[1641040346414,27.66479,172.43,172.36,8.10171928]
[1641040347315,21.07259479,172.43,172.36,8.10171928]
[1641040347716,27.66479,172.46,172.36,8.10171928]
[1641040348324,30.66479,172.46,172.36,8.10171928]
[1641040349320,8.53659476,172.45,172.36,8.10171928]
[1641040349721,3.0,172.43,172.36,8.10171928]
[1641040349921,3.0,172.4,172.36,8.10171928]
[1641040350122,3.0,172.41,172.32,27.66479]
[1641040350523,27.66479,172.4,172.31,32.25070325]
[1641040350722,30.66479,172.4,172.31,32.25070325]
[1641040350927,27.66479,172.4,172.29,90.77649325]
[1641040351824,27.66479,172.4,172.3,7.94369686]
[1641040352723,32.25070325,172.43,172.3,10.94369686]
[1641040352924,35.25070325,172.43,172.3,7.94369686]
[1641040353126,32.25070325,172.43,172.3,7.94369686]
[1641040353324,3.0,172.45,172.32,32.25070325]
[1641040353527,30.0447,172.47,172.32,37.04770325]
[1641040353725,3.0,172.43,172.32,37.04770325]
[1641040353925,3.0,172.43,172.32,4.797]
[1641040354529,27.66479,172.41,172.32,4.797]
[1641040354927,3.0,172.44,172.32,4.797]
[1641040356430,3.0,172.44,172.31,32.25070325]
[1641040356630,27.66479,172.41,172.31,32.25070325]
[1641040357331,40.027213,172.41,172.33,12.362423]
[1641040358639,40.027213,172.41,172.33,40.027213]
[1641040358836,40.027213,172.41,172.33,12.362423]
[1641040359136,12.362423,172.4,172.32,12.362423]
[1641040360637,12.362423,172.4,172.32,40.027213]
[1641040361037,12.362423,172.39,172.32,27.66479]
[1641040362636,12.362423,172.4,172.32,40.027213]
[1641040364238,15.362423,172.42,172.34,12.362423]
[1641040364642,12.362423,172.42,172.34,12.362423]
[1641040365839,12.362423,172.42,172.32,27.66479]
[1641040365840,12.362423,172.4,172.32,40.027213]
[1641040366543,12.362423,172.4,172.33,1.94866254]
[1641040368143,2.17201052,172.42,172.35,12.362423]
[1641040368644,2.17201052,172.42,172.35,40.027213]
[1641040368843,14.53443352,172.42,172.35,29.61345254]
[1641040369244,3.0,172.41,172.35,1.94866254]
[1641040369444,3.0,172.4,172.35,1.94866254]
[1641040369646,3.0,172.37,172.35,1.94866254]
[1641040369851,14.53443352,172.4,172.35,1.94866254]
[1641040370050,17.53443352,172.4,172.35,1.94866254]
[1641040370650,14.53443352,172.39,172.32,1.94866254]
[1641040371852,12.362423,172.39,172.32,1.94866254]
[1641040372553,12.362423,172.39,172.35,27.66479]
[1641040372752,2.17201052,172.4,172.35,27.66479]
[1641040373552,2.17201052,172.4,172.36,1.94866254]
[1641040374452,12.362423,172.41,172.36,1.94866254]
[1641040375255,14.53443352,172.42,172.36,1.94866254]
[1641040375857,12.362423,172.41,172.36,1.94866254]
[1641040376958,14.53443352,172.42,172.36,1.94866254]
[1641040379962,3.0,172.39,172.36,1.94866254]
[1641040380562,12.362423,172.42,172.36,1.94866254]
[1641040381164,12.362423,172.41,172.34,12.362423]
[1641040382167,12.362423,172.4,172.34,1.94866254]
[1641040384165,12.362423,172.41,172.34,1.94866254]
[1641040384967,2.1715675,172.42,172.35,12.362423]
[1641040385667,12.362423,172.41,172.34,1.94866254]
[1641040386367,15.362423,172.41,172.34,1.94866254]
[1641040386567,14.5339905,172.41,172.34,1.94866254]
[1641040387468,2.1715675,172.41,172.34,22.25442633]
[1641040388769,2.1715675,172.41,172.35,12.362423]
[1641040389774,14.5339905,172.41,172.34,1.94866254]
[1641040391073,42.1987805,172.41,172.34,1.94866254]
[1641040391273,45.1987805,172.41,172.34,1.94866254]
[1641040391672,42.1987805,172.41,172.34,1.94866254]
[1641040392171,2.1715675,172.4,172.37,4.12031939]
[1641040394975,14.5339905,172.4,172.36,4.12031939]
[1641040395675,14.5339905,172.4,172.34,4.12031939]
[1641040395877,2.1715675,172.4,172.34,4.12031939]
[1641040398183,14.5339905,172.4,172.36,4.12031939]
[1641040399982,2.1715675,172.4,172.37,4.12031939]
[1641040400883,14.5339905,172.4,172.36,4.12031939]
[1641040402283,2.1715675,172.4,172.37,4.12031939]
[1641040403184,2.1715675,172.4,172.38,4.12031939]
[1641040403684,2.1715675,172.4,172.37,4.12031939]
[1641040406288,2.1715675,172.4,172.38,4.12031939]
[1641040407088,2.1715675,172.4,172.37,4.12031939]
[1641040407688,2.1715675,172.4,172.38,4.12031939]
[1641040408390,27.66479,172.41,172.36,6.06898193]
[1641040409189,2.16827321,172.4,172.36,6.06898193]
[1641040409592,3.0,172.38,172.36,6.06898193]
[1641040409789,3.0,172.37,172.32,12.362423]
[1641040410290,3.0,172.36,172.32,12.362423]
[1641040410490,3.0,172.35,172.32,12.362423]
[1641040410893,3.0,172.35,172.24,29.5668]
[1641040410894,3.0,172.36,172.28,12.362423]
[1641040411092,8.075,172.37,172.28,12.362423]
[1641040411493,27.66479,172.32,172.28,12.362423]
[1641040411893,27.66479,172.32,172.27,12.362423]
[1641040412294,32.95679,172.32,172.27,12.362423]
[1641040412695,26.36249198,172.32,172.27,12.362423]
[1641040414695,5.292,172.32,172.27,12.362423]
[1641040414895,30.66479,172.35,172.27,12.362423]
[1641040415297,27.66479,172.35,172.26,12.362423]
[1641040415699,30.66479,172.35,172.26,12.362423]
[1641040415999,3.0,172.34,172.26,12.362423]
[1641040416799,27.66479,172.35,172.26,12.362423]
[1641040417902,30.66479,172.35,172.26,12.362423]
[1641040418101,30.66479,172.35,172.27,12.362423]
[1641040418403,27.66479,172.35,172.27,12.362423]
[1641040418605,45.4004891,172.36,172.27,5.122]
[1641040418804,12.3412891,172.36,172.27,5.122]
[1641040419403,27.66479,172.37,172.3,12.362423]
[1641040420202,27.66479,172.37,172.29,40.027213]
[1641040421004,27.66479,172.37,172.29,27.66479]
[1641040423710,12.3412891,172.38,172.29,27.66479]
[1641040424411,21.1414167,172.39,172.29,40.027213]
[1641040424710,18.1414167,172.39,172.29,40.027213]
[1641040425009,12.3412891,172.39,172.29,40.027213]
[1641040425210,12.3412891,172.38,172.29,27.66479]
[1641040426013,12.3412891,172.39,172.31,12.362423]
[1641040426611,12.3412891,172.4,172.32,12.362423]
[1641040427413,3.0,172.39,172.32,12.362423]
[1641040427613,12.3412891,172.4,172.32,12.362423]
[1641040427812,40.0060791,172.4,172.32,12.362423]
[1641040429713,43.0060791,172.4,172.32,12.362423]
[1641040429914,8.7999594,172.39,172.32,12.362423]
[1641040430114,5.7999594,172.39,172.32,12.362423]
[1641040430314,12.3412891,172.38,172.3,20.00230132]
[1641040431513,12.3412891,172.38,172.3,12.362423]
[1641040431717,5.7999594,172.39,172.29,27.66479]
[1641040432516,40.0060791,172.4,172.29,27.66479]
[1641040433113,27.66479,172.4,172.29,27.66479]
[1641040433915,27.66479,172.4,172.29,40.027213]
[1641040435818,27.66479,172.4,172.32,27.66479]
[1641040436016,18.6692891,172.41,172.32,27.66479]
[1641040436516,6.328,172.41,172.32,27.66479]
[1641040438417,18.6692891,172.41,172.33,12.362423]
[1641040438619,18.6692891,172.41,172.33,20.00207954]
[1641040438819,18.6692891,172.41,172.33,51.72967954]
[1641040439422,18.6692891,172.41,172.33,20.00207954]
[1641040439624,18.14108031,172.4,172.32,40.027213]
[1641040440022,27.66479,172.39,172.32,40.027213]
[1641040440426,12.3412891,172.38,172.32,27.66479]
[1641040441025,40.0060791,172.39,172.32,27.66479]
[1641040441928,40.0060791,172.39,172.31,12.362423]
[1641040442527,12.3412891,172.38,172.31,20.00232076]
[1641040443329,12.3412891,172.39,172.31,20.00232076]
[1641040443928,29.9855,172.4,172.33,12.362423]
[1641040444128,29.9855,172.4,172.33,18.585423]
[1641040444430,12.3412891,172.41,172.33,18.585423]
[1641040444630,12.3412891,172.41,172.33,26.22532076]
[1641040445130,12.3412891,172.41,172.34,12.362423]
[1641040445331,12.3412891,172.41,172.34,41.845523]
[1641040445933,27.66479,172.39,172.34,41.845523]
[1641040446839,27.66479,172.39,172.34,29.4831]
[1641040447041,12.3412891,172.41,172.34,29.4831]
[1641040447538,40.0060791,172.43,172.35,20.00194014]
[1641040448339,12.3412891,172.42,172.34,41.845523]
[1641040449539,15.3412891,172.42,172.34,41.845523]
[1641040449938,3.0,172.41,172.34,41.845523]
[1641040450438,2.28515857,172.4,172.35,1.83487048]
[1641040451140,14.62644767,172.4,172.35,1.83487048]
[1641040452542,2.28515857,172.41,172.34,21.83689111]
[1641040452743,2.28515857,172.41,172.34,27.42889111]
[1641040453142,2.28515857,172.41,172.35,14.19729348]
[1641040453743,2.28515857,172.42,172.35,14.19729348]
[1641040453944,2.28515857,172.42,172.35,41.86208348]
[1641040454444,2.28515857,172.42,172.36,1.83487048]
[1641040455946,40.0060791,172.43,172.36,1.83487048]
[1641040455947,27.66479,172.43,172.39,12.362423]
[1641040456648,27.66479,172.43,172.38,21.83646691]
[1641040457451,2.28416955,172.42,172.38,1.83487048]
[1641040458049,27.66479,172.43,172.38,21.83648995]
[1641040459452,2.28431101,172.42,172.38,1.83487048]
[1641040461254,27.66479,172.43,172.37,44.207523]
[1641040461455,27.66479,172.43,172.37,31.8451]
[1641040462053,2.28411432,172.42,172.38,1.83496541]
[1641040470171,2.28411432,172.42,172.4,4.11929253]
[1641040473374,27.66479,172.43,172.4,4.11929253]
[1641040473875,2.28434735,172.42,172.4,4.11929253]
[1641040474478,27.66479,172.43,172.4,4.11929253]
[1641040475878,2.28433491,172.42,172.4,4.11929253]
[1641040476377,5.28433491,172.42,172.38,1.83496541]
[1641040476577,3.0,172.4,172.36,12.362423]
[1641040477078,5.8001276,172.39,172.36,11.995423]
[1641040477477,5.8001276,172.39,172.29,27.66479]
[1641040477877,13.8511276,172.39,172.29,27.66479]
[1641040478077,10.8511276,172.39,172.29,27.66479]
[1641040478278,10.8511276,172.39,172.3,7.48830725]
[1641040478478,27.66479,172.38,172.3,7.48830725]
[1641040479078,27.66479,172.38,172.29,27.66479]
[1641040481982,58.28149,172.38,172.29,27.66479]
[1641040482682,58.28149,172.38,172.28,29.9714]
[1641040483383,58.28149,172.38,172.29,7.48846922]
[1641040485286,27.66479,172.38,172.29,7.48846922]
[1641040485488,41.0501581,172.41,172.29,7.48846922]
[1641040485689,38.0501581,172.41,172.29,7.48846922]
[1641040485890,38.0501581,172.41,172.28,32.9714]
[1641040486092,27.66479,172.43,172.3,3.0]
[1641040486290,27.66479,172.43,172.31,3.0]
[1641040486491,27.66479,172.43,172.32,3.0]
[1641040486691,27.66479,172.43,172.28,29.9714]
[1641040486692,27.66479,172.43,172.35,27.66479]
[1641040487892,21.07372128,172.43,172.35,27.66479]
[1641040491097,21.07372128,172.43,172.36,3.0]
[1641040491297,21.07372128,172.43,172.35,27.66479]
[1641040491797,21.07372128,172.43,172.36,3.0]
[1641040491998,27.66479,172.47,172.37,3.0]
[1641040492197,27.66479,172.47,172.38,3.0]
[1641040492599,27.66479,172.47,172.37,3.0]
[1641040492797,27.66479,172.47,172.39,27.66479]
[1641040493498,27.66479,172.47,172.4,7.32953059]
[1641040493901,35.25070325,172.53,172.41,3.0]
[1641040494098,32.25070325,172.52,172.43,3.0]
[1641040494298,32.25070325,172.52,172.4,7.32953059]
[1641040494299,32.25070325,172.52,172.42,3.0]
[1641040494900,32.25070325,172.52,172.45,27.66479]
[1641040495700,9.14117411,172.53,172.45,27.66479]
[1641040496100,58.17469,172.54,172.45,27.66479]
[1641040496900,58.17469,172.54,172.45,30.66479]
[1641040497202,58.17469,172.54,172.45,27.66479]
[1641040498304,27.66479,172.54,172.47,3.0]
[1641040498504,27.66479,172.54,172.5,3.0]
[1641040498705,32.25070325,172.57,172.51,3.0]
[1641040498906,32.25070325,172.6,172.54,27.66479]
[1641040499106,32.25070325,172.6,172.54,33.04979]
[1641040499806,9.13343636,172.62,172.54,33.04979]
[1641040504411,12.13343636,172.62,172.54,33.04979]
[1641040504612,3.0,172.61,172.54,33.04979]
[1641040505714,9.13343636,172.62,172.54,33.04979]
[1641040507315,12.34487018,172.62,172.54,45.39466018]
[1641040508616,12.34487018,172.63,172.55,19.67280174]
[1641040508817,12.34487018,172.63,172.58,27.66479]
[1641040510117,61.57679,172.65,172.58,27.66479]
[1641040510318,30.66479,172.65,172.58,27.66479]
[1641040514322,27.66479,172.65,172.58,27.66479]
[1641040515423,30.66479,172.65,172.58,27.66479]
[1641040515624,27.66479,172.65,172.58,27.66479]
[1641040516025,27.66479,172.65,172.59,19.67264866]
[1641040516827,27.66479,172.65,172.6,12.34487018]
[1641040517326,3.0,172.64,172.6,12.34487018]
[1641040517927,27.66479,172.65,172.6,12.34487018]
[1641040518829,12.34487018,172.68,172.62,27.66479]
[1641040519028,43.99757018,172.69,172.62,27.66479]
[1641040519228,12.34487018,172.69,172.62,27.66479]
[1641040519829,27.66479,172.7,172.64,12.34487018]
[1641040520029,12.34487018,172.72,172.64,12.34487018]
[1641040520429,12.34487018,172.72,172.64,15.34487018]
[1641040520633,2.39289078,172.72,172.67,12.34487018]
[1641040521032,2.39289078,172.72,172.7,27.66479]
[1641040521629,34.1145,172.76,172.71,9.04714203]
[1641040521833,3.0,172.76,172.71,9.04714203]
[1641040522230,3.0,172.77,172.71,9.04714203]
[1641040522430,3.0,172.77,172.71,1.71936355]
[1641040523234,3.0,172.77,172.7,12.33677223]
[1641040523235,3.0,172.77,172.68,27.66479]
[1641040524938,3.0,172.77,172.71,27.66479]
[1641040525137,3.0,172.77,172.68,27.66479]
[1641040525538,3.28964105,172.76,172.68,27.66479]
[1641040526139,3.28964105,172.77,172.68,27.66479]
[1641040528342,6.28964105,172.79,172.68,27.66479]
[1641040528540,3.28964105,172.79,172.68,27.66479]
[1641040528741,3.28964105,172.78,172.69,1.70220473]
[1641040531046,27.66479,172.77,172.68,58.31829]
[1641040531544,3.0,172.75,172.68,58.31829]
[1641040531745,3.28964105,172.76,172.68,58.31829]
[1641040531946,3.28964105,172.74,172.68,58.31829]
[1641040532445,3.28964105,172.74,172.68,27.66479]
[1641040532646,30.66479,172.77,172.68,27.66479]
[1641040532647,6.28964105,172.76,172.68,27.66479]
[1641040533048,3.28964105,172.75,172.64,27.66479]
[1641040533449,34.56074105,172.76,172.64,27.66479]
[1641040533847,34.56074105,172.76,172.65,1.70214082]
[1641040534047,3.28964105,172.75,172.65,1.70214082]
[1641040534348,6.28964105,172.75,172.65,1.70214082]
[1641040534748,3.28964105,172.74,172.65,1.70214082]
[1641040535047,3.28964105,172.74,172.68,27.66479]
[1641040535548,3.0,172.72,172.65,1.70214082]
[1641040536449,3.0,172.74,172.65,1.70214082]
[1641040536648,3.0,172.73,172.65,1.70214082]
[1641040536851,3.0,172.72,172.65,4.07127105]
[1641040537053,3.0,172.7,172.65,4.07127105]
[1641040537251,8.78954986,172.7,172.65,4.07127105]
[1641040537452,3.29034816,172.69,172.65,4.07127105]
[1641040537651,3.29034816,172.69,172.65,3.49077105]
[1641040537855,6.29034816,172.69,172.65,3.49077105]
[1641040538056,3.0,172.68,172.61,12.33677223]
[1641040538256,8.762,172.69,172.58,12.33677223]
[1641040538456,5.762,172.69,172.58,12.33677223]
[1641040538758,5.762,172.69,172.59,1.6968537]
[1641040539158,27.66479,172.67,172.59,1.6968537]
[1641040540057,27.66479,172.67,172.64,12.33677223]
[1641040541860,27.66479,172.67,172.63,12.33677223]
[1641040545566,3.0,172.64,172.63,12.33677223]
[1641040545863,3.0,172.64,172.63,10.78687223]
[1641040546064,3.0,172.64,172.59,32.25070325]
[1641040546264,3.0,172.64,172.55,31.5372]
[1641040546467,3.0,172.63,172.55,31.5372]
[1641040546664,3.0,172.62,172.55,31.5372]
[1641040547265,2.3999109,172.61,172.56,1.71412053]
[1641040548065,11.54238197,172.64,172.56,1.71412053]
[1641040549067,27.66479,172.63,172.56,1.71412053]
[1641040549974,2.3999109,172.62,172.56,1.71412053]
[1641040550574,59.76279,172.67,172.55,31.5372]
[1641040550974,62.76279,172.67,172.55,31.5372]
[1641040551174,27.66479,172.64,172.55,31.5372]
[1641040553076,27.66479,172.64,172.57,27.66479]
[1641040553277,2.41419974,172.63,172.57,27.66479]
[1641040553878,27.66479,172.64,172.58,1.70018471]
[1641040554479,2.41420051,172.63,172.58,1.70018471]
[1641040555080,27.66479,172.64,172.58,1.70018471]
[1641040555682,2.41407926,172.63,172.58,1.70018471]
[1641040556281,27.66479,172.64,172.58,1.70018471]
[1641040556882,2.41408826,172.63,172.58,1.70018471]
[1641040557380,27.66479,172.64,172.58,1.70018471]
[1641040558181,2.41411037,172.63,172.58,1.70018471]
[1641040558581,27.66479,172.64,172.58,1.70018471]
[1641040559384,11.59651513,172.63,172.56,1.70018471]
[1641040560883,11.59651513,172.63,172.55,1.70018471]
[1641040562385,2.41455699,172.64,172.55,1.70018471]
[1641040562986,2.41455699,172.64,172.55,8.97692904]
[1641040563193,2.41455699,172.64,172.57,27.66479]
[1641040563689,2.41455699,172.64,172.58,1.70018471]
[1641040569293,2.41455699,172.64,172.62,27.66479]
[1641040570401,5.79139399,172.65,172.62,27.66479]
[1641040571202,2.41394341,172.64,172.62,27.66479]
[1641040571802,5.79139399,172.65,172.62,27.66479]
[1641040572603,2.41385953,172.64,172.62,27.66479]
[1641040573306,5.79139399,172.65,172.62,27.66479]
[1641040574006,2.41386665,172.64,172.62,27.66479]
[1641040574408,5.79139399,172.65,172.62,27.66479]
[1641040575210,2.41387186,172.64,172.62,27.66479]
[1641040575911,12.34226535,172.64,172.62,27.66479]
[1641040576412,2.41387488,172.64,172.62,27.66479]
[1641040577011,12.34222592,172.64,172.62,27.66479]
[1641040577614,9.18195814,172.67,172.62,27.66479]
[1641040577815,12.34109844,172.66,172.62,27.66479]
[1641040578513,2.41344627,172.69,172.62,27.66479]
[1641040579013,12.3411085,172.66,172.62,27.66479]
[1641040579712,2.41344627,172.69,172.62,27.66479]
[1641040580316,12.34112805,172.66,172.62,27.66479]
[1641040581017,2.41344627,172.69,172.62,27.66479]
[1641040581817,12.33993618,172.68,172.63,1.70029195]